bitfinex/quotes_SOLUSD_20240813
["timestamp","ask_amount","ask_price","bid_price","bid_amount"]
[1723558675031,28.7356,147.39,147.37,6.7856]
[1723558675625,11.9379,147.42,147.37,6.7855]
[1723558675824,11.9379,147.42,147.39,6.7846]
[1723558676213,11.9379,147.42,147.38,45.0]
[1723558676214,11.9379,147.42,147.38,51.785]
[1723558676417,11.9379,147.42,147.38,45.0]
[1723558676720,11.9379,147.42,147.36,6.786]
[1723558676906,18.7212,147.42,147.37,45.0]
[1723558677112,11.9379,147.42,147.36,45.0]
[1723558677303,0.25098,147.41,147.36,45.0]
[1723558677720,7.03478,147.41,147.36,45.0]
[1723558679098,7.03478,147.41,147.35,45.0]
[1723558679415,11.9379,147.42,147.35,45.0]
[1723558679602,11.9379,147.42,147.37,6.7852]
[1723558679799,11.9379,147.42,147.38,45.0]
[1723558680022,11.9379,147.42,147.38,51.785]
[1723558680213,11.9379,147.42,147.38,45.0]
[1723558680423,11.9379,147.42,147.34,46.53]
[1723558680628,11.9379,147.42,147.31,46.53]
[1723558680832,6.7839,147.41,147.34,6.7869]
[1723558681032,13.6343843,147.42,147.32,20.0]
[1723558681223,6.7843,147.4,147.32,20.0]
[1723558681412,0.25098,147.41,147.32,20.0]
[1723558681732,0.25098,147.41,147.35,6.7864]
[1723558681925,13.63430173,147.42,147.34,46.53]
[1723558682119,6.90939,147.41,147.34,53.3165]
[1723558682305,6.90939,147.41,147.33,6.7873]
[1723558682306,1.69648003,147.4,147.33,6.7873]
[1723558682502,6.7847,147.39,147.34,45.0]
[1723558682717,0.12549,147.4,147.33,45.0]
[1723558682922,20.12549,147.41,147.32,45.0]
[1723558683126,20.12549,147.41,147.35,6.7864]
[1723558683313,20.12549,147.41,147.36,45.0]
[1723558683517,12.06339,147.42,147.36,45.0]
[1723558683710,29.3675,147.43,147.39,6.7846]
[1723558683916,29.3675,147.43,147.37,46.53]
[1723558683917,29.3675,147.43,147.4,45.0]
[1723558684123,29.3675,147.43,147.4,51.7841]
[1723558684410,29.3675,147.43,147.4,45.0]
[1723558684609,12.0636,147.46,147.4,45.0]
[1723558684902,12.0636,147.46,147.42,6.7829]
[1723558685105,12.0636,147.46,147.43,45.0]
[1723558685648,1.69577032,147.45,147.37,46.53]
[1723558685828,6.7832,147.43,147.38,45.0]
[1723558686137,18.77963291,147.43,147.33,38.71]
[1723558686321,6.7852,147.38,147.31,38.71]
[1723558686519,6.7852,147.38,147.31,45.4982]
[1723558686841,6.7848,147.39,147.32,6.7877]
[1723558687003,1.69658546,147.38,147.32,6.7877]
[1723558687427,28.3996,147.39,147.31,38.71]
[1723558687726,28.3996,147.39,147.33,38.71]
[1723558687907,28.3996,147.39,147.31,38.71]
[1723558688107,18.1785,147.37,147.29,45.4989]
[1723558688335,13.08956073,147.37,147.3,6.7884]
[1723558688532,13.08956073,147.37,147.31,6.7882]
[1723558688714,13.08956073,147.37,147.29,38.71]
[1723558688715,1.82220279,147.36,147.29,38.71]
[1723558688910,8.4839236,147.35,147.27,45.4999]
[1723558689107,11.3928,147.37,147.29,6.7892]
[1723558689321,20.0,147.36,147.29,6.7892]
[1723558689610,11.3928,147.37,147.31,38.71]
[1723558689813,11.3928,147.37,147.34,6.7869]
[1723558690016,11.3928,147.37,147.33,38.71]
[1723558690245,11.3928,147.37,147.33,45.4973]
[1723558690739,11.3928,147.37,147.34,45.0]
[1723558691310,11.4901,147.41,147.35,40.06718749]
[1723558691536,11.4901,147.41,147.36,45.0]
[1723558691911,1.69621446,147.4,147.32,38.71]
[1723558692111,1.69621446,147.4,147.22,50.665]
[1723558692112,6.7864,147.36,147.29,45.4993]
[1723558692325,11.4901,147.41,147.27,38.71]
[1723558692326,1.69697026,147.35,147.27,38.71]
[1723558692623,37.356,147.35,147.27,45.5001]
[1723558692809,13.60755862,147.34,147.25,38.71]
[1723558693007,6.7887,147.31,147.25,38.71]
[1723558693230,1.69751852,147.3,147.24,6.7915]
[1723558693430,6.7878,147.33,147.25,6.791]
[1723558693721,6.7889,147.3,147.22,45.5024]
[1723558693939,8.48708523,147.29,147.22,6.7924]
[1723558694322,0.12549,147.31,147.24,6.7915]
[1723558694527,1.69754328,147.31,147.25,6.791]
[1723558694833,6.7884,147.31,147.23,46.54]
[1723558695032,20.0,147.33,147.23,46.54]
[1723558695033,6.91439,147.3,147.23,46.54]
[1723558695353,6.91439,147.3,147.2,46.54]
[1723558695354,6.7898,147.28,147.2,46.54]
[1723558695522,1.69790165,147.32,147.2,46.54]
[1723558695722,6.7891,147.3,147.2,46.54]
[1723558696051,7.16487,147.31,147.23,6.792]
[1723558696223,20.0,147.3,147.24,6.7915]
[1723558696429,6.788,147.32,147.24,6.7915]
[1723558696730,26.7884,147.31,147.24,6.7915]
[1723558696934,20.0,147.31,147.25,45.0]
[1723558697319,6.7885,147.31,147.25,45.0]
[1723558697624,6.7885,147.31,147.24,45.0]
[1723558698154,6.7889,147.3,147.24,45.0]
[1723558698627,6.7884,147.31,147.24,45.0]
[1723558698953,6.7894,147.29,147.21,6.7926]
[1723558699121,8.48730121,147.29,147.21,6.7926]
[1723558699322,1.82339121,147.29,147.2,46.54]
[1723558699547,6.7906,147.27,147.2,46.54]
[1723558699728,30.5581,147.27,147.2,53.3333]
[1723558700050,11.55459,147.26,147.17,47.3814149]
[1723558700354,8.48937734,147.25,147.17,7.6358149]
[1723558700648,18.34539,147.26,147.18,6.7943]
[1723558700831,18.34539,147.26,147.19,6.7936]
[1723558701214,11.55459,147.26,147.17,0.8414149]
[1723558701617,11.4291,147.26,147.17,0.8414149]
[1723558701923,0.25098,147.25,147.17,0.8414149]
[1723558702140,11.4291,147.26,147.18,6.794]
[1723558702350,18.2199,147.26,147.19,6.7937]
[1723558702655,11.4291,147.26,147.19,46.54]
[1723558703046,12.3303,147.3,147.22,46.54]
[1723558703347,30.1604,147.31,147.25,46.54]
[1723558703530,30.1604,147.31,147.26,45.0]
[1723558703736,30.1604,147.31,147.28,6.7897]
[1723558704040,30.1604,147.31,147.29,45.0]
[1723558704628,30.1604,147.31,147.25,46.54]
[1723558704820,30.1604,147.31,147.26,45.0]
[1723558705021,30.1604,147.31,147.28,6.7897]
[1723558705255,30.1604,147.31,147.29,45.0]
[1723558705549,30.1604,147.31,147.25,53.3307]
[1723558706124,12.3303,147.34,147.29,6.789]
[1723558706438,12.3303,147.34,147.31,6.788]
[1723558706636,12.3303,147.34,147.28,46.54]
[1723558707132,12.3303,147.34,147.29,6.7891]
[1723558707334,12.3303,147.34,147.29,45.0]
[1723558708756,12.3303,147.34,147.29,51.7891]
[1723558708959,12.3303,147.34,147.29,45.0]
[1723558709169,12.3303,147.34,147.32,6.7878]
[1723558709459,12.3303,147.34,147.33,45.0]
[1723558709662,29.4924,147.35,147.33,51.7874]
[1723558709854,53.9083,147.46,147.33,45.0]
[1723558709855,11.8756,147.37,147.33,45.0]
[1723558710031,11.8756,147.37,147.32,45.0]
[1723558710948,6.7868,147.35,147.28,53.3294]
[1723558711261,1.69696853,147.34,147.28,46.54]
[1723558711560,1.69696853,147.34,147.28,53.3294]
[1723558712334,1.69696853,147.34,147.25,46.54]
[1723558712668,20.0,147.36,147.25,46.54]
[1723558712831,20.0,147.36,147.32,6.7876]
[1723558713034,11.8756,147.37,147.28,46.54]
[1723558713229,11.8756,147.37,147.34,6.7866]
[1723558713452,11.8756,147.37,147.31,46.54]
[1723558713658,11.8756,147.37,147.32,45.0]
[1723558713849,11.8756,147.37,147.33,1.3572923]
[1723558714034,30.5509,147.39,147.35,6.7865]
[1723558714229,30.5509,147.39,147.32,6.7875]
[1723558714230,37.3359,147.39,147.32,6.7875]
[1723558714671,30.5509,147.39,147.33,6.7874]
[1723558714835,30.5509,147.39,147.31,46.54]
[1723558715034,30.5509,147.39,147.32,1.48266447]
[1723558715259,30.5509,147.39,147.32,0.12549]
[1723558715470,30.5509,147.39,147.32,0.25098]
[1723558715659,30.5509,147.39,147.32,6.7876]
[1723558715868,1.69641342,147.38,147.33,45.0]
[1723558716082,6.7865,147.35,147.28,53.3297]
[1723558716257,6.7873,147.34,147.27,45.54]
[1723558716494,0.12549,147.37,147.27,38.75]
[1723558716660,6.7861,147.36,147.29,6.789]
[1723558716961,0.50196,147.37,147.27,38.75]
[1723558717274,6.7861,147.36,147.27,38.75]
[1723558717488,6.7861,147.36,147.29,6.7889]
[1723558717769,6.7861,147.36,147.3,45.0]
[1723558718573,11.5683,147.33,147.27,45.5402]
[1723558718776,11.5683,147.33,147.27,6.7902]
[1723558718973,1.69719321,147.32,147.27,6.7902]
[1723558719282,13.26549213,147.33,147.2,15.2135367]
[1723558719451,6.7888,147.3,147.23,6.7917]
[1723558719780,30.20820657,147.32,147.22,38.75]
[1723558719781,35.29898,147.32,147.22,38.75]
[1723558719954,6.7885,147.31,147.24,6.7915]
[1723558720152,28.51068,147.32,147.25,6.7908]
[1723558720378,0.25098,147.31,147.25,6.7911]
[1723558720554,8.73742332,147.31,147.24,6.7915]
[1723558720748,6.7894,147.29,147.21,38.75]
[1723558721254,0.25098,147.31,147.21,38.75]
[1723558721460,20.25098,147.31,147.21,38.75]
[1723558722173,20.25098,147.31,147.22,45.0]
[1723558722373,27.03968,147.31,147.22,46.35812981]
[1723558722667,0.12549,147.29,147.23,6.7919]
[1723558722971,0.12549,147.3,147.24,51.7915]
[1723558723349,0.12549,147.3,147.25,6.7911]
[1723558723653,20.25098,147.31,147.26,51.7907]
[1723558723846,28.51068,147.32,147.27,45.0]
[1723558724049,28.51068,147.32,147.27,51.7902]
[1723558724248,28.51068,147.32,147.27,45.0]
[1723558724976,6.7884,147.31,147.27,45.0]
[1723558725277,0.12549,147.29,147.22,6.7924]
[1723558725475,0.12549,147.29,147.21,38.75]
[1723558725476,6.7898,147.28,147.21,45.5428]
[1723558725778,6.91579,147.27,147.2,6.7933]
[1723558725987,11.7569,147.25,147.19,6.7938]
[1723558726445,11.7569,147.25,147.17,39.5914149]
[1723558726645,11.7569,147.25,147.2,6.7931]
[1723558727477,11.7569,147.25,147.17,39.5914149]
[1723558727478,11.7569,147.25,147.21,6.7928]
[1723558727981,11.7569,147.25,147.2,6.7933]
[1723558728175,11.7569,147.25,147.19,6.7938]
[1723558728396,29.4256,147.24,147.19,6.7938]
[1723558729465,29.4256,147.24,147.2,6.7933]
[1723558730174,29.4256,147.24,147.21,45.0]
[1723558730381,11.7569,147.25,147.22,6.7922]
[1723558730560,11.7569,147.25,147.23,45.0]
[1723558730758,29.4256,147.28,147.23,83.75]
[1723558731081,29.4256,147.28,147.26,6.7906]
[1723558731280,29.4256,147.28,147.23,83.75]
[1723558731281,29.4256,147.28,147.25,6.791]
[1723558731580,29.4256,147.28,147.26,51.7906]
[1723558731777,29.4256,147.28,147.24,6.7914]
[1723558731961,29.4256,147.28,147.25,45.0]
[1723558732154,1.697761,147.27,147.23,45.0]
[1723558732351,29.4256,147.28,147.23,51.792]
[1723558733178,29.4256,147.28,147.23,51.7919]
[1723558733575,29.4256,147.28,147.23,45.0]
[1723558733956,0.12549,147.27,147.18,38.75]
[1723558734156,0.50196,147.27,147.21,6.793]
[1723558734462,36.2155,147.28,147.18,38.75]
[1723558734767,7.16677,147.27,147.18,38.75]
[1723558734959,0.12549,147.25,147.19,6.7935]
[1723558735159,1.94932529,147.25,147.19,6.7935]
[1723558735358,0.25098,147.25,147.19,6.7935]
[1723558735576,6.91669,147.25,147.19,6.7935]
[1723558735779,8.61503534,147.25,147.18,6.7942]
[1723558735966,6.91669,147.25,147.18,6.7942]
[1723558736366,6.91669,147.25,147.19,6.7938]
[1723558736569,0.12549,147.26,147.2,6.7933]
[1723558736764,7.04158,147.27,147.21,6.7929]
[1723558736765,0.25098,147.27,147.21,6.7929]
[1723558736982,20.0,147.27,147.21,6.7929]
[1723558737283,29.4256,147.28,147.23,6.792]
[1723558737483,29.4256,147.28,147.22,51.7924]
[1723558737684,29.4256,147.28,147.22,83.75]
[1723558738162,29.4256,147.28,147.22,90.5425]
[1723558738484,29.4256,147.28,147.22,83.75]
[1723558738789,36.2157,147.28,147.22,45.0]
[1723558738973,29.4256,147.28,147.21,45.0]
[1723558739179,29.4256,147.28,147.22,38.87549]
[1723558739393,29.4256,147.28,147.27,6.7902]
[1723558739758,29.4256,147.28,147.27,45.0]
[1723558740179,11.7569,147.29,147.27,51.7902]
[1723558740387,11.7569,147.29,147.27,45.0]
[1723558740567,11.7569,147.29,147.26,45.0]
[1723558740761,11.7569,147.29,147.25,45.0]
[1723558741188,18.5462,147.29,147.25,45.0]
[1723558741587,11.7569,147.29,147.24,45.0]
[1723558742174,1.69774763,147.28,147.24,45.0]
[1723558742683,11.7569,147.29,147.24,45.0]
[1723558742890,1.69774743,147.28,147.24,45.0]
[1723558743183,11.7569,147.29,147.24,45.0]
[1723558743588,1.69774686,147.28,147.24,45.0]
[1723558743890,28.428,147.25,147.17,39.5914149]
[1723558744398,28.428,147.25,147.2,6.7933]
[1723558744690,28.428,147.25,147.19,38.75]
[1723558744880,28.428,147.25,147.22,6.7922]
[1723558745073,1.69797442,147.24,147.18,6.794]
[1723558745279,1.69822038,147.23,147.19,45.0]
[1723558745583,1.69822038,147.23,147.18,6.794]
[1723558745789,28.428,147.25,147.19,6.7939]
[1723558746097,8.48991856,147.24,147.17,46.3860149]
[1723558746284,6.7917,147.24,147.18,6.7943]
[1723558746489,0.12549,147.24,147.18,6.7943]
[1723558746694,7.04268,147.24,147.17,39.5914149]
[1723558746996,6.91719,147.24,147.17,39.5914149]
[1723558747297,6.91719,147.24,147.17,46.3859149]
[1723558747507,12.2255,147.21,147.17,0.8414149]
[1723558748001,12.2255,147.21,147.18,6.7943]
[1723558748400,12.2255,147.21,147.17,7.6361149]
[1723558748900,40.6535,147.25,147.19,38.75]
[1723558749079,42.9556,147.3,147.24,6.7916]
[1723558749435,42.9556,147.3,147.25,45.0]
[1723558750079,42.9556,147.3,147.26,6.7905]
[1723558750281,42.9556,147.3,147.27,45.0]
[1723558750797,42.9556,147.3,147.26,45.0]
[1723558751004,42.9556,147.3,147.25,45.0]
[1723558751306,1.69760556,147.29,147.25,45.0]
[1723558751712,6.7899,147.28,147.25,45.0]
[1723558752005,1.69772425,147.27,147.25,45.0]
[1723558752175,8.48808271,147.27,147.2,45.5433]
[1723558752376,1.697897,147.26,147.21,45.0]
[1723558752577,42.9556,147.3,147.21,45.0]
[1723558752799,20.0,147.29,147.21,45.0]
[1723558753009,20.0,147.29,147.23,6.7919]
[1723558753227,1.69767071,147.28,147.24,45.0]
[1723558753440,26.7893,147.29,147.24,45.0]
[1723558753585,42.9556,147.3,147.26,6.7906]
[1723558753925,42.9556,147.3,147.27,45.0]
[1723558754222,42.9556,147.3,147.27,51.7901]
[1723558754446,42.9556,147.3,147.27,45.0]
[1723558754600,42.9556,147.3,147.22,38.75]
[1723558754601,6.7893,147.29,147.22,45.5424]
[1723558754922,6.7898,147.28,147.22,38.75]
[1723558755118,42.9556,147.3,147.23,6.7919]
[1723558755119,49.7446,147.3,147.23,6.7919]
[1723558755297,42.9556,147.3,147.22,38.75]
[1723558755502,42.9556,147.3,147.15,30.2888]
[1723558755503,6.7904,147.27,147.2,45.5434]
[1723558755706,6.7898,147.28,147.21,6.7929]
[1723558756222,42.9556,147.3,147.23,6.792]
[1723558756223,49.7447,147.3,147.23,6.792]
[1723558756724,6.7893,147.29,147.23,6.792]
[1723558757092,42.9556,147.3,147.24,45.0]
[1723558757413,42.9556,147.3,147.24,38.87549]
[1723558757622,42.9556,147.3,147.25,45.0]
[1723558757923,42.9556,147.3,147.26,6.7905]
[1723558758124,42.9556,147.3,147.27,45.0]
[1723558759209,42.9556,147.3,147.27,51.7902]
[1723558759516,42.9556,147.3,147.27,45.0]
[1723558759927,42.9556,147.3,147.26,45.0]
[1723558760419,42.9556,147.3,147.26,6.7907]
[1723558760624,55.7144,147.37,147.26,6.7907]
[1723558760625,40.566,147.34,147.29,6.7889]
[1723558760802,47.3531,147.34,147.3,45.0]
[1723558761130,6.7875,147.33,147.26,45.5405]
[1723558761316,6.7875,147.33,147.27,45.0]
[1723558762620,40.566,147.34,147.27,45.0]
[1723558762814,47.3531,147.34,147.27,6.7901]
[1723558762995,47.3531,147.34,147.28,45.0]
[1723558763196,47.3531,147.34,147.28,51.7897]
[1723558763597,47.3531,147.34,147.28,45.0]
[1723558764104,47.3531,147.34,147.28,51.7897]
[1723558764306,40.566,147.34,147.28,51.7897]
[1723558764528,6.7874,147.33,147.28,45.0]
[1723558765239,6.7875,147.33,147.28,45.0]
[1723558765441,1.69723344,147.32,147.27,45.0]
[1723558765618,8.48523344,147.32,147.27,45.0]
[1723558765820,8.48523344,147.32,147.16,40.39]
[1723558765821,6.7894,147.29,147.23,45.5419]
[1723558766137,8.4874295,147.28,147.22,6.7924]
[1723558766308,0.12549,147.31,147.23,6.792]
[1723558766507,1.69756641,147.31,147.23,6.792]
[1723558766738,6.7892,147.3,147.23,6.792]
[1723558767315,6.7892,147.3,147.24,45.0]
[1723558767530,6.7892,147.3,147.24,51.7916]
[1723558767836,6.7885,147.31,147.25,6.7911]
[1723558768032,6.91349,147.32,147.26,45.0]
[1723558768207,57.5338,147.34,147.26,45.0]
[1723558768208,26.7884,147.31,147.26,45.0]
[1723558768624,6.7889,147.3,147.26,45.0]
[1723558768831,6.79,147.28,147.21,45.5428]
[1723558769033,6.79,147.28,147.22,6.7924]
[1723558769225,6.79,147.28,147.21,38.75]
[1723558769226,6.7891,147.3,147.23,6.7919]
[1723558769542,6.7891,147.3,147.21,38.75]
[1723558769543,6.7892,147.3,147.21,38.75]
[1723558769717,6.7892,147.3,147.22,0.12549]
[1723558770047,6.789,147.3,147.23,6.7917]
[1723558770216,6.789,147.3,147.24,45.0]
[1723558770417,6.7899,147.28,147.24,45.0]
[1723558770627,0.12549,147.3,147.24,45.0]
[1723558770830,6.7894,147.29,147.23,45.0]
[1723558771050,6.7899,147.28,147.23,45.0]
[1723558771334,20.0,147.31,147.22,45.0]
[1723558771640,0.12549,147.32,147.23,38.75]
[1723558771850,6.7889,147.3,147.24,45.0]
[1723558772139,6.7885,147.31,147.24,51.7915]
[1723558772338,20.0,147.3,147.24,51.7915]
[1723558772539,26.789,147.3,147.24,45.0]
[1723558772944,26.789,147.3,147.24,51.7915]
[1723558773143,0.25098,147.32,147.25,6.791]
[1723558773351,6.7879,147.32,147.26,45.0]
[1723558773847,6.7889,147.3,147.26,45.0]
[1723558774137,0.12549,147.32,147.26,45.0]
[1723558774345,6.7884,147.31,147.26,45.0]
[1723558774646,7.03908,147.32,147.26,45.0]
[1723558774845,57.5339,147.34,147.26,45.0]
[1723558774846,40.566,147.34,147.27,38.75]
[1723558775015,40.566,147.34,147.28,45.0]
[1723558775338,40.566,147.34,147.3,6.7886]
[1723558775527,40.566,147.34,147.31,45.0]
[1723558775743,47.3532,147.34,147.31,45.0]
[1723558775930,6.7877,147.33,147.3,45.0]
[1723558776343,6.7877,147.33,147.25,0.12549]
[1723558776344,6.7887,147.31,147.25,38.75]
[1723558776560,40.566,147.34,147.26,45.0]
[1723558776724,6.788,147.32,147.26,51.7906]
[1723558777048,40.566,147.34,147.26,51.7906]
[1723558777049,47.3533,147.34,147.26,51.7902]
[1723558777342,47.3531,147.34,147.27,6.7902]
[1723558777545,6.7875,147.33,147.28,45.0]
[1723558777754,40.566,147.34,147.26,45.0]
[1723558777916,40.566,147.34,147.28,6.7897]
[1723558778252,40.566,147.34,147.29,45.0]
[1723558778547,40.566,147.34,147.28,45.0]
[1723558778749,26.7876,147.33,147.25,38.75]
[1723558778916,26.7876,147.33,147.26,51.7904]
[1723558779118,6.788,147.32,147.26,51.7904]
[1723558779316,0.12549,147.32,147.25,38.75]
[1723558779557,6.7889,147.3,147.23,45.5417]
[1723558780073,6.7889,147.3,147.24,6.7915]
[1723558780774,6.7889,147.3,147.23,38.75]
[1723558780957,6.7889,147.3,147.24,45.0]
[1723558780958,1.69745703,147.29,147.24,45.0]
[1723558781275,6.7885,147.31,147.24,51.7915]
[1723558781479,6.7889,147.3,147.24,51.7916]
[1723558781849,6.7885,147.31,147.24,51.7916]
[1723558782352,6.7888,147.3,147.24,51.7916]
[1723558782876,6.91379,147.32,147.25,6.7911]
[1723558783086,0.12549,147.32,147.26,51.7906]
[1723558783261,6.91349,147.32,147.27,45.0]
[1723558783570,0.12549,147.3,147.21,38.75]
[1723558783779,6.7899,147.28,147.21,6.7929]
[1723558784176,0.37647,147.3,147.19,74.7956]
[1723558784346,6.7906,147.27,147.2,6.7931]
[1723558784548,1.69799208,147.26,147.19,6.7938]
[1723558784879,7.04228,147.25,147.18,6.7942]
[1723558785063,8.4901833,147.24,147.17,46.3861149]
[1723558785382,42.84367,147.27,147.17,39.5914149]
[1723558785582,6.7913,147.25,147.18,6.7943]
[1723558785761,1.82376293,147.24,147.17,0.8414149]
[1723558786072,1.69847423,147.23,147.17,0.8414149]
[1723558786278,0.12549,147.22,147.17,0.8414149]
[1723558786462,1.94965139,147.22,147.17,0.8414149]
[1723558786978,0.12549,147.22,147.17,0.8414149]
[1723558787485,6.7943,147.19,147.17,0.8414149]
[1723558787687,1.69881589,147.18,147.17,0.8414149]
[1723558787854,6.7935,147.2,147.17,0.8414149]
[1723558788653,1.69881368,147.19,147.17,0.8414149]
[1723558788971,0.12549,147.21,147.17,0.8414149]
[1723558789174,0.50196,147.21,147.17,0.8414149]
[1723558789370,6.7938,147.2,147.17,0.8414149]
[1723558789791,20.0,147.22,147.17,0.8414149]
[1723558789970,0.12549,147.2,147.17,0.8414149]
[1723558790386,0.12549,147.18,147.17,0.8414149]
[1723558792293,8.74442469,147.18,147.17,0.8414149]
[1723558792604,27.29636,147.18,147.17,0.8414149]
[1723558792774,28.99566084,147.18,147.17,0.8414149]
[1723558793299,27.29636,147.18,147.17,0.8414149]
[1723558794400,42.0775,147.19,147.17,0.8414149]
[1723558794613,20.0,147.18,147.17,0.8414149]
[1723558794805,42.0775,147.19,147.17,0.8414149]
[1723558795317,1.69893556,147.18,147.17,0.8414149]
[1723558795480,6.7944,147.18,147.17,0.8414149]
[1723558795682,0.25098,147.18,147.17,0.8414149]
[1723558796611,41.9451,147.23,147.17,0.8414149]
[1723558796925,6.7934,147.21,147.17,0.8414149]
[1723558797090,28.49223557,147.2,147.17,0.8414149]
[1723558797508,21.69873557,147.2,147.17,0.8414149]
[1723558797813,20.0,147.2,147.17,0.8414149]
[1723558797998,20.0,147.21,147.17,0.8414149]
[1723558798196,20.0,147.22,147.17,0.8414149]
[1723558799288,41.9451,147.23,147.17,0.8414149]
[1723558799496,41.9451,147.23,147.18,6.7943]
[1723558799699,6.7913,147.25,147.19,45.0]
[1723558800022,48.5812,147.27,147.2,6.7934]
[1723558800185,41.7906,147.27,147.21,45.0]
[1723558800386,6.7898,147.28,147.21,6.7929]
[1723558800589,1.69795455,147.27,147.19,45.0]
[1723558800785,1.69828029,147.26,147.19,45.0]
[1723558801013,1.69828029,147.26,147.17,0.8414149]
[1723558801321,6.7931,147.21,147.17,0.8414149]
[1723558801519,1.69864424,147.2,147.17,0.8414149]
[1723558801699,12.3295,147.24,147.17,0.8414149]
[1723558801894,6.7911,147.25,147.18,6.7939]
[1723558802110,8.48993822,147.24,147.18,6.7939]
[1723558802429,29.7162,147.26,147.2,6.7934]
[1723558802623,28.48956862,147.25,147.21,45.0]
[1723558802823,6.7916,147.24,147.17,7.6361149]
[1723558803025,6.7916,147.24,147.18,45.0]
[1723558803208,6.7916,147.24,147.18,51.7943]
[1723558803534,6.7916,147.24,147.18,45.0]
[1723558803835,6.7921,147.23,147.18,45.0]
[1723558804126,8.4905554,147.23,147.18,45.0]
[1723558804335,6.91829,147.22,147.17,0.8414149]
[1723558804506,0.12549,147.23,147.17,0.8414149]
[1723558804712,0.25098,147.23,147.17,0.8414149]
[1723558804922,6.793,147.21,147.17,0.8414149]
[1723558805120,0.12549,147.22,147.17,0.8414149]
[1723558805325,6.7942,147.19,147.17,0.8414149]
[1723558805520,8.49324538,147.18,147.17,0.8414149]
[1723558805721,0.12549,147.21,147.17,0.8414149]
[1723558805924,6.7936,147.2,147.17,0.8414149]
[1723558806138,6.91859,147.21,147.17,0.8414149]
[1723558806438,0.12549,147.2,147.17,0.8414149]
[1723558806805,6.7925,147.22,147.17,0.8414149]
[1723558807006,26.7931,147.21,147.17,0.8414149]
[1723558807224,6.7929,147.22,147.17,0.8414149]
[1723558807431,26.7932,147.21,147.17,0.8414149]
[1723558807639,6.7932,147.21,147.17,0.8414149]
[1723558808010,6.7927,147.22,147.17,0.8414149]
[1723558808227,1.69873887,147.24,147.17,0.8414149]
[1723558808228,6.7935,147.2,147.17,0.8414149]
[1723558808453,20.0,147.21,147.17,0.8414149]
[1723558808730,26.7925,147.22,147.17,0.8414149]
[1723558808900,0.25098,147.21,147.17,0.8414149]
[1723558809107,6.91989,147.18,147.17,0.8414149]
[1723558809550,56.33076,147.18,147.17,0.8414149]
[1723558809750,58.0301281,147.18,147.17,0.8414149]
[1723558810337,56.33076,147.18,147.17,0.8414149]
[1723558810931,1.82497419,147.17,147.05,31.09]
[1723558811240,0.12549,147.13,147.05,31.09]
[1723558811437,0.12549,147.11,147.03,41.0446]
[1723558811622,0.12549,147.11,147.02,0.8414149]
[1723558811823,0.25098,147.11,147.02,0.8414149]
[1723558812023,20.0,147.12,147.06,6.7996]
[1723558812327,11.3622,147.13,147.09,6.7981]
[1723558812510,6.92209,147.14,147.07,6.7991]
[1723558812821,20.0,147.13,147.07,6.7991]
[1723558813141,20.0,147.13,147.08,6.7989]
[1723558813322,6.92299,147.12,147.05,6.8003]